Workbook

Sheet Feuil1
F2: Il s'agit de copier la dernière ligne Client (17 en l'ocurence) pour la copier en ligne 19 en effaçant le nom (F), la remise (P) et le timbre (U) et ainsi de suite pour une nouvelle facture
A4: N° Ordre | B4: Mois | C4: Date | D4: N° Facture | E4: N° Facture | F4: Client Code barre Produit | G4: Réf. Article | H4: N° Art. | I4: Code Article | J4: Désignation Article | K4: Unité | L4: Quantité | M4: Prix Unité HT | N4: Montant HT Brut | O4: Remise % | P4: Remise Montant | Q4: Montant HT Net | R4: Taux TVA | S4: Montant TVA | T4: Montant TTC | U4: Timbre 1% | V4: Montant TTC+Timbre | W4: Référence | X4: Colonne2 | Y4: Colonne1 | Z4: Indice | AB4: Liste déroulante sans doublon
A5: 0 | B5: 01 | C5: 2017-01-22 | E5: =IF(C5="","","17."&TEXT(B5,"00")&"-"&TEXT(SUMPRODUCT((LEFT(E$4:E4,5)="17."&TEXT($B5,"00"))*1)+1,"00")) -> 17.01-01 | F5: TREPOST | G5: =IF(ISNA(INDEX([1]ART!$Q:$Q,MATCH(I5,[1]ART!$B:$B,0))),"",INDEX([1]ART!$Q:$Q,MATCH(I5,[1]ART!$B:$B,0))) ->  | I5: 2 | K5: =IF(ISNA(INDEX([1]ART!$D:$D,MATCH(I5,[1]ART!$B:$B,0))),"",INDEX([1]ART!$D:$D,MATCH(I5,[1]ART!$B:$B,0))) ->  | N5: =SUMIF($D6:$D$9423,$E5,N6:N$9423) -> 5407.79 | O5: =P5/N5 -> 0 | Q5: =N5-P5 -> 5407.79 | R5: =R6 -> 0.19 | S5: =Q5*R5 -> 1027.4801 | T5: =Q5+S5 -> 6435.2701 | V5: =T5+U5 -> 6435.2701 | W5: . | Z5: =A6 -> 1 | AB5: =IF(E5="","",IF(COUNTIF(E$5:E5,E5)>1,"",MAX($AB$4:$AB4)+1)) -> 1 | AC5: =IF(ROWS($AB$5:$AB5)>MAX($Z$5:$Z$9097),"",OFFSET($E$5,MATCH(ROWS($AB$5:$AB5),$Z$5:$Z$9097,0)-1,0)) -> 17.01-01
A6: =IF(ISNA(INDEX([1]VTR!$A:$A,MATCH(D6,[1]VTR!$D:$D,0))),"",INDEX([1]VTR!$A:$A,MATCH(D6,[1]VTR!$D:$D,0))) -> 1 | B6: =IF(C6<>"","",IF(B5="",B5,B5)) -> 01 | D6: =IF(E6<>"","",IF(D5="",E5,D5)) -> 17.01-01 | G6: =IF(ISNA(INDEX([1]ART!$Q:$Q,MATCH(I6,[1]ART!$B:$B,0))),"",INDEX([1]ART!$Q:$Q,MATCH(I6,[1]ART!$B:$B,0))) -> 1-PRS | H6: 1 | I6: TP | J6: =IF(ISNA(INDEX([1]ART!$C:$C,MATCH(I6,[1]ART!$B:$B,0))),"",INDEX([1]ART!$C:$C,MATCH(I6,[1]ART!$B:$B,0))) -> Tirage Noir & Blanc / Papier | K6: =IF(ISNA(INDEX([1]ART!$D:$D,MATCH(I6,[1]ART!$B:$B,0))),"",INDEX([1]ART!$D:$D,MATCH(I6,[1]ART!$B:$B,0))) -> ML | L6: 25.65 | M6: 68.38011696 | N6: 1753.95 | O6: =IF(E6<>"","",IF(O5="",O5,O5)) -> 0 | Q6: =N6-P6 -> 1753.95 | R6: =IF(ISNA(INDEX([1]ART!$H:$H,MATCH(I6,[1]ART!$B:$B,0))),"",INDEX([1]ART!$H:$H,MATCH(I6,[1]ART!$B:$B,0))) -> 0.19 | S6: =Q6*R6 -> 333.2505 | T6: =Q6+S6 -> 2087.2005 | Z6: =A6 -> 1 | AB6: =IF(E6="","",IF(COUNTIF(E$5:E6,E6)>1,"",MAX($AB$4:$AB5)+1)) ->  | AC6: =IF(ROWS($AB$5:$AB6)>MAX($Z$5:$Z$9097),"",OFFSET($E$5,MATCH(ROWS($AB$5:$AB6),$Z$5:$Z$9097,0)-1,0)) -> 17.01-02
A7: =IF(ISNA(INDEX([1]VTR!$A:$A,MATCH(D7,[1]VTR!$D:$D,0))),"",INDEX([1]VTR!$A:$A,MATCH(D7,[1]VTR!$D:$D,0))) -> 1 | B7: =IF(C7<>"","",IF(B6="",B6,B6)) -> 01 | D7: =IF(E7<>"","",IF(D6="",E6,D6)) -> 17.01-01 | G7: =IF(ISNA(INDEX([1]ART!$Q:$Q,MATCH(I7,[1]ART!$B:$B,0))),"",INDEX([1]ART!$Q:$Q,MATCH(I7,[1]ART!$B:$B,0))) -> 1-PRS | H7: 2 | I7: PP0 | J7: =IF(ISNA(INDEX([1]ART!$C:$C,MATCH(I7,[1]ART!$B:$B,0))),"",INDEX([1]ART!$C:$C,MATCH(I7,[1]ART!$B:$B,0))) -> Traçage Couleur / Papier (aucun aplat) | K7: =IF(ISNA(INDEX([1]ART!$D:$D,MATCH(I7,[1]ART!$B:$B,0))),"",INDEX([1]ART!$D:$D,MATCH(I7,[1]ART!$B:$B,0))) -> ML | L7: 8.55 | M7: 427.3497076 | N7: 3653.84 | O7: 0 | Q7: =N7-P7 -> 3653.84 | R7: =IF(ISNA(INDEX([1]ART!$H:$H,MATCH(I7,[1]ART!$B:$B,0))),"",INDEX([1]ART!$H:$H,MATCH(I7,[1]ART!$B:$B,0))) -> 0.19 | S7: =Q7*R7 -> 694.2296 | T7: =Q7+S7 -> 4348.0696 | Z7: =A7 -> 1 | AB7: =IF(E7="","",IF(COUNTIF(E$5:E7,E7)>1,"",MAX($AB$4:$AB6)+1)) ->  | AC7: =IF(ROWS($AB$5:$AB7)>MAX($Z$5:$Z$9097),"",OFFSET($E$5,MATCH(ROWS($AB$5:$AB7),$Z$5:$Z$9097,0)-1,0)) -> 17.01-03
A8: 0 | B8: 01 | C8: 2017-01-22 | E8: =IF(C8="","","17."&TEXT(B8,"00")&"-"&TEXT(SUMPRODUCT((LEFT(E$4:E7,5)="17."&TEXT($B8,"00"))*1)+1,"00")) -> 17.01-02 | F8: MEDIA | G8: =IF(ISNA(INDEX([1]ART!$Q:$Q,MATCH(I8,[1]ART!$B:$B,0))),"",INDEX([1]ART!$Q:$Q,MATCH(I8,[1]ART!$B:$B,0))) ->  | I8: 2 | K8: =IF(ISNA(INDEX([1]ART!$D:$D,MATCH(I8,[1]ART!$B:$B,0))),"",INDEX([1]ART!$D:$D,MATCH(I8,[1]ART!$B:$B,0))) ->  | N8: =SUMIF($D9:$D$9423,$E8,N9:N$9423) -> 5252.38 | O8: =P8/N8 -> 0.09999847688 | P8: 525.23 | Q8: =N8-P8 -> 4727.15 | R8: =R9 -> 0.19 | S8: =Q8*R8 -> 898.1585 | T8: =Q8+S8 -> 5625.3085 | U8: =ROUNDDOWN(T8,-2)/100 -> 56 | V8: =T8+U8 -> 5681.3085 | W8: . | Z8: =A9 -> 2 | AB8: =IF(E8="","",IF(COUNTIF(E$5:E8,E8)>1,"",MAX($AB$4:$AB7)+1)) -> 2 | AC8: =IF(ROWS($AB$5:$AB8)>MAX($Z$5:$Z$9097),"",OFFSET($E$5,MATCH(ROWS($AB$5:$AB8),$Z$5:$Z$9097,0)-1,0)) -> 17.01-04
A9: =IF(ISNA(INDEX([1]VTR!$A:$A,MATCH(D9,[1]VTR!$D:$D,0))),"",INDEX([1]VTR!$A:$A,MATCH(D9,[1]VTR!$D:$D,0))) -> 2 | B9: =IF(C9<>"","",IF(B8="",B8,B8)) -> 01 | D9: 17.01-02 | G9: =IF(ISNA(INDEX([1]ART!$Q:$Q,MATCH(I9,[1]ART!$B:$B,0))),"",INDEX([1]ART!$Q:$Q,MATCH(I9,[1]ART!$B:$B,0))) -> 1-PRS | H9: 1 | I9: C42 | J9: =IF(ISNA(INDEX([1]ART!$C:$C,MATCH(I9,[1]ART!$B:$B,0))),"",INDEX([1]ART!$C:$C,MATCH(I9,[1]ART!$B:$B,0))) -> Copie Couleur A4-R / Papier (tout aplat) | K9: =IF(ISNA(INDEX([1]ART!$D:$D,MATCH(I9,[1]ART!$B:$B,0))),"",INDEX([1]ART!$D:$D,MATCH(I9,[1]ART!$B:$B,0))) -> U | L9: 68 | M9: 55.56 | N9: 3778.08 | O9: 0.09999847688 | P9: =N9*O9 -> 377.8022455 | Q9: =N9-P9 -> 3400.277754 | R9: =IF(ISNA(INDEX([1]ART!$H:$H,MATCH(I9,[1]ART!$B:$B,0))),"",INDEX([1]ART!$H:$H,MATCH(I9,[1]ART!$B:$B,0))) -> 0.19 | S9: =Q9*R9 -> 646.0527733 | T9: =Q9+S9 -> 4046.330528 | Z9: =A9 -> 2 | AB9: =IF(E9="","",IF(COUNTIF(E$5:E9,E9)>1,"",MAX($AB$4:$AB8)+1)) ->  | AC9: =IF(ROWS($AB$5:$AB9)>MAX($Z$5:$Z$9097),"",OFFSET($E$5,MATCH(ROWS($AB$5:$AB9),$Z$5:$Z$9097,0)-1,0)) -> 17.01-05
A10: =IF(ISNA(INDEX([1]VTR!$A:$A,MATCH(D10,[1]VTR!$D:$D,0))),"",INDEX([1]VTR!$A:$A,MATCH(D10,[1]VTR!$D:$D,0))) -> 2 | B10: =IF(C10<>"","",IF(B9="",B9,B9)) -> 01 | D10: 17.01-02 | G10: =IF(ISNA(INDEX([1]ART!$Q:$Q,MATCH(I10,[1]ART!$B:$B,0))),"",INDEX([1]ART!$Q:$Q,MATCH(I10,[1]ART!$B:$B,0))) -> 1-PRS | H10: 2 | I10: I42 | J10: =IF(ISNA(INDEX([1]ART!$C:$C,MATCH(I10,[1]ART!$B:$B,0))),"",INDEX([1]ART!$C:$C,MATCH(I10,[1]ART!$B:$B,0))) -> Impression Couleur A4-R / Papier (tout aplat) | K10: =IF(ISNA(INDEX([1]ART!$D:$D,MATCH(I10,[1]ART!$B:$B,0))),"",INDEX([1]ART!$D:$D,MATCH(I10,[1]ART!$B:$B,0))) -> U | L10: 17 | M10: 64.1 | N10: 1089.7 | O10: 0.09999847688 | P10: 108.9683403 | Q10: 980.7316597 | R10: =IF(ISNA(INDEX([1]ART!$H:$H,MATCH(I10,[1]ART!$B:$B,0))),"",INDEX([1]ART!$H:$H,MATCH(I10,[1]ART!$B:$B,0))) -> 0.19 | S10: 186.3390154 | T10: 1167.070675 | Z10: =A10 -> 2 | AC10: =IF(ROWS($AB$5:$AB10)>MAX($Z$5:$Z$9097),"",OFFSET($E$5,MATCH(ROWS($AB$5:$AB10),$Z$5:$Z$9097,0)-1,0)) -> 
A11: =IF(ISNA(INDEX([1]VTR!$A:$A,MATCH(D11,[1]VTR!$D:$D,0))),"",INDEX([1]VTR!$A:$A,MATCH(D11,[1]VTR!$D:$D,0))) -> 2 | B11: =IF(C11<>"","",IF(B10="",B10,B10)) -> 01 | D11: 17.01-02 | G11: =IF(ISNA(INDEX([1]ART!$Q:$Q,MATCH(I11,[1]ART!$B:$B,0))),"",INDEX([1]ART!$Q:$Q,MATCH(I11,[1]ART!$B:$B,0))) -> 1-PRS | H11: 3 | I11: R4S1 | J11: =IF(ISNA(INDEX([1]ART!$C:$C,MATCH(I11,[1]ART!$B:$B,0))),"",INDEX([1]ART!$C:$C,MATCH(I11,[1]ART!$B:$B,0))) -> Reliure A4 Spirale n° 06 à 19 + Transparent + Bristol | K11: =IF(ISNA(INDEX([1]ART!$D:$D,MATCH(I11,[1]ART!$B:$B,0))),"",INDEX([1]ART!$D:$D,MATCH(I11,[1]ART!$B:$B,0))) -> U | L11: 5 | M11: 76.92 | N11: 384.6 | O11: 0.09999847688 | P11: 38.45941421 | Q11: 346.1405858 | R11: =IF(ISNA(INDEX([1]ART!$H:$H,MATCH(I11,[1]ART!$B:$B,0))),"",INDEX([1]ART!$H:$H,MATCH(I11,[1]ART!$B:$B,0))) -> 0.19 | S11: 65.7667113 | T11: 411.9072971 | Z11: =A11 -> 2 | AB11: =IF(E11="","",IF(COUNTIF(E$5:E11,E11)>1,"",MAX($AB$4:$AB10)+1)) ->  | AC11: =IF(ROWS($AB$5:$AB11)>MAX($Z$5:$Z$9097),"",OFFSET($E$5,MATCH(ROWS($AB$5:$AB11),$Z$5:$Z$9097,0)-1,0)) -> 
A12: 0 | B12: 01 | C12: 2017-01-25 | E12: =IF(C12="","","17."&TEXT(B12,"00")&"-"&TEXT(SUMPRODUCT((LEFT(E$4:E11,5)="17."&TEXT($B12,"00"))*1)+1,"00")) -> 17.01-03 | F12: SONY | G12: =IF(ISNA(INDEX([1]ART!$Q:$Q,MATCH(I12,[1]ART!$B:$B,0))),"",INDEX([1]ART!$Q:$Q,MATCH(I12,[1]ART!$B:$B,0))) ->  | I12: 2 | J12: =IF(ISNA(INDEX([1]ART!$C:$C,MATCH(I12,[1]ART!$B:$B,0))),"",INDEX([1]ART!$C:$C,MATCH(I12,[1]ART!$B:$B,0))) ->  | K12: =IF(ISNA(INDEX([1]ART!$D:$D,MATCH(I12,[1]ART!$B:$B,0))),"",INDEX([1]ART!$D:$D,MATCH(I12,[1]ART!$B:$B,0))) ->  | N12: =SUMIF($D13:$D$9423,$E12,N13:N$9423) -> 862.4 | O12: =P12/N12 -> 0 | Q12: =N12-P12 -> 862.4 | R12: =R13 -> 0.19 | S12: =Q12*R12 -> 163.856 | T12: =Q12+S12 -> 1026.256 | V12: =T12+U12 -> 1026.256 | W12: . | Z12: =A13 -> 3 | AB12: =IF(E12="","",IF(COUNTIF(E$5:E12,E12)>1,"",MAX($AB$4:$AB11)+1)) -> 3 | AC12: =IF(ROWS($AB$5:$AB12)>MAX($Z$5:$Z$9097),"",OFFSET($E$5,MATCH(ROWS($AB$5:$AB12),$Z$5:$Z$9097,0)-1,0)) -> 
A13: =IF(ISNA(INDEX([1]VTR!$A:$A,MATCH(D13,[1]VTR!$D:$D,0))),"",INDEX([1]VTR!$A:$A,MATCH(D13,[1]VTR!$D:$D,0))) -> 3 | B13: =IF(C13<>"","",IF(B12="",B12,B12)) -> 01 | D13: 17.01-03 | G13: =IF(ISNA(INDEX([1]ART!$Q:$Q,MATCH(I13,[1]ART!$B:$B,0))),"",INDEX([1]ART!$Q:$Q,MATCH(I13,[1]ART!$B:$B,0))) -> 1-PRS | H13: 1 | I13: C3 | J13: =IF(ISNA(INDEX([1]ART!$C:$C,MATCH(I13,[1]ART!$B:$B,0))),"",INDEX([1]ART!$C:$C,MATCH(I13,[1]ART!$B:$B,0))) -> Copie Noir & Blanc A3-R / Papier | K13: =IF(ISNA(INDEX([1]ART!$D:$D,MATCH(I13,[1]ART!$B:$B,0))),"",INDEX([1]ART!$D:$D,MATCH(I13,[1]ART!$B:$B,0))) -> U | L13: 3 | M13: 5.98 | N13: 17.94 | O13: 0 | P13: 0 | Q13: =N13-P13 -> 17.94 | R13: =IF(ISNA(INDEX([1]ART!$H:$H,MATCH(I13,[1]ART!$B:$B,0))),"",INDEX([1]ART!$H:$H,MATCH(I13,[1]ART!$B:$B,0))) -> 0.19 | S13: =Q13*R13 -> 3.4086 | T13: =Q13+S13 -> 21.3486 | Z13: =A13 -> 3 | AB13: =IF(E13="","",IF(COUNTIF(E$5:E13,E13)>1,"",MAX($AB$4:$AB12)+1)) ->  | AC13: =IF(ROWS($AB$5:$AB13)>MAX($Z$5:$Z$9097),"",OFFSET($E$5,MATCH(ROWS($AB$5:$AB13),$Z$5:$Z$9097,0)-1,0)) -> 
A14: =IF(ISNA(INDEX([1]VTR!$A:$A,MATCH(D14,[1]VTR!$D:$D,0))),"",INDEX([1]VTR!$A:$A,MATCH(D14,[1]VTR!$D:$D,0))) -> 3 | B14: =IF(C14<>"","",IF(B13="",B13,B13)) -> 01 | D14: 17.01-03 | G14: =IF(ISNA(INDEX([1]ART!$Q:$Q,MATCH(I14,[1]ART!$B:$B,0))),"",INDEX([1]ART!$Q:$Q,MATCH(I14,[1]ART!$B:$B,0))) -> 1-PRS | H14: 2 | I14: I30 | J14: =IF(ISNA(INDEX([1]ART!$C:$C,MATCH(I14,[1]ART!$B:$B,0))),"",INDEX([1]ART!$C:$C,MATCH(I14,[1]ART!$B:$B,0))) -> Impression Couleur A3-R / Papier (aucun aplat) | K14: =IF(ISNA(INDEX([1]ART!$D:$D,MATCH(I14,[1]ART!$B:$B,0))),"",INDEX([1]ART!$D:$D,MATCH(I14,[1]ART!$B:$B,0))) -> U | L14: 1 | M14: 85.47 | N14: 85.47 | O14: 0 | P14: 0 | Q14: 85.47 | R14: =IF(ISNA(INDEX([1]ART!$H:$H,MATCH(I14,[1]ART!$B:$B,0))),"",INDEX([1]ART!$H:$H,MATCH(I14,[1]ART!$B:$B,0))) -> 0.19 | S14: 16.2393 | T14: 101.7093 | Z14: =A14 -> 3 | AB14: =IF(E14="","",IF(COUNTIF(E$5:E14,E14)>1,"",MAX($AB$4:$AB13)+1)) ->  | AC14: =IF(ROWS($AB$5:$AB14)>MAX($Z$5:$Z$9097),"",OFFSET($E$5,MATCH(ROWS($AB$5:$AB14),$Z$5:$Z$9097,0)-1,0)) -> 
A15: =IF(ISNA(INDEX([1]VTR!$A:$A,MATCH(D15,[1]VTR!$D:$D,0))),"",INDEX([1]VTR!$A:$A,MATCH(D15,[1]VTR!$D:$D,0))) -> 3 | B15: =IF(C15<>"","",IF(B14="",B14,B14)) -> 01 | D15: 17.01-03 | G15: =IF(ISNA(INDEX([1]ART!$Q:$Q,MATCH(I15,[1]ART!$B:$B,0))),"",INDEX([1]ART!$Q:$Q,MATCH(I15,[1]ART!$B:$B,0))) -> 1-PRS | H15: 3 | I15: TP | J15: =IF(ISNA(INDEX([1]ART!$C:$C,MATCH(I15,[1]ART!$B:$B,0))),"",INDEX([1]ART!$C:$C,MATCH(I15,[1]ART!$B:$B,0))) -> Tirage Noir & Blanc / Papier | K15: =IF(ISNA(INDEX([1]ART!$D:$D,MATCH(I15,[1]ART!$B:$B,0))),"",INDEX([1]ART!$D:$D,MATCH(I15,[1]ART!$B:$B,0))) -> ML | L15: 3.6 | M15: 68.38055556 | N15: 246.17 | O15: 0 | P15: 0 | Q15: 246.17 | R15: =IF(ISNA(INDEX([1]ART!$H:$H,MATCH(I15,[1]ART!$B:$B,0))),"",INDEX([1]ART!$H:$H,MATCH(I15,[1]ART!$B:$B,0))) -> 0.19 | S15: 46.7723 | T15: 292.9423 | Z15: =A15 -> 3 | AB15: =IF(E15="","",IF(COUNTIF(E$5:E15,E15)>1,"",MAX($AB$4:$AB14)+1)) ->  | AC15: =IF(ROWS($AB$5:$AB15)>MAX($Z$5:$Z$9097),"",OFFSET($E$5,MATCH(ROWS($AB$5:$AB15),$Z$5:$Z$9097,0)-1,0)) -> 
A16: =IF(ISNA(INDEX([1]VTR!$A:$A,MATCH(D16,[1]VTR!$D:$D,0))),"",INDEX([1]VTR!$A:$A,MATCH(D16,[1]VTR!$D:$D,0))) -> 3 | B16: =IF(C16<>"","",IF(B15="",B15,B15)) -> 01 | D16: 17.01-03 | G16: =IF(ISNA(INDEX([1]ART!$Q:$Q,MATCH(I16,[1]ART!$B:$B,0))),"",INDEX([1]ART!$Q:$Q,MATCH(I16,[1]ART!$B:$B,0))) -> 1-PRS | H16: 4 | I16: PP0 | J16: =IF(ISNA(INDEX([1]ART!$C:$C,MATCH(I16,[1]ART!$B:$B,0))),"",INDEX([1]ART!$C:$C,MATCH(I16,[1]ART!$B:$B,0))) -> Traçage Couleur / Papier (aucun aplat) | K16: =IF(ISNA(INDEX([1]ART!$D:$D,MATCH(I16,[1]ART!$B:$B,0))),"",INDEX([1]ART!$D:$D,MATCH(I16,[1]ART!$B:$B,0))) -> ML | L16: 1.2 | M16: 427.35 | N16: 512.82 | O16: 0 | P16: 0 | Q16: 512.82 | R16: =IF(ISNA(INDEX([1]ART!$H:$H,MATCH(I16,[1]ART!$B:$B,0))),"",INDEX([1]ART!$H:$H,MATCH(I16,[1]ART!$B:$B,0))) -> 0.19 | S16: 97.4358 | T16: 610.2558 | Z16: =A16 -> 3 | AB16: =IF(E16="","",IF(COUNTIF(E$5:E16,E16)>1,"",MAX($AB$4:$AB15)+1)) ->  | AC16: =IF(ROWS($AB$5:$AB16)>MAX($Z$5:$Z$9097),"",OFFSET($E$5,MATCH(ROWS($AB$5:$AB16),$Z$5:$Z$9097,0)-1,0)) -> 
A17: 0 | B17: 01 | C17: 2017-01-25 | E17: =IF(C17="","","17."&TEXT(B17,"00")&"-"&TEXT(SUMPRODUCT((LEFT(E$4:E16,5)="17."&TEXT($B17,"00"))*1)+1,"00")) -> 17.01-04 | F17: FITNESS | G17: =IF(ISNA(INDEX([1]ART!$Q:$Q,MATCH(I17,[1]ART!$B:$B,0))),"",INDEX([1]ART!$Q:$Q,MATCH(I17,[1]ART!$B:$B,0))) ->  | I17: 2 | J17: =IF(ISNA(INDEX([1]ART!$C:$C,MATCH(I17,[1]ART!$B:$B,0))),"",INDEX([1]ART!$C:$C,MATCH(I17,[1]ART!$B:$B,0))) ->  | K17: =IF(ISNA(INDEX([1]ART!$D:$D,MATCH(I17,[1]ART!$B:$B,0))),"",INDEX([1]ART!$D:$D,MATCH(I17,[1]ART!$B:$B,0))) ->  | N17: =SUMIF($D18:$D$9423,$E17,N18:N$9423) -> 7051.3 | O17: =P17/N17 -> 0.04999078184 | P17: 352.5 | Q17: =N17-P17 -> 6698.8 | R17: =R18 -> 0.19 | S17: =Q17*R17 -> 1272.772 | T17: =Q17+S17 -> 7971.572 | U17: =ROUNDDOWN(T17,-2)/100 -> 79 | V17: =T17+U17 -> 8050.572 | W17: . | Z17: =A18 -> 4 | AB17: =IF(E17="","",IF(COUNTIF(E$5:E17,E17)>1,"",MAX($AB$4:$AB16)+1)) -> 4 | AC17: =IF(ROWS($AB$5:$AB17)>MAX($Z$5:$Z$9097),"",OFFSET($E$5,MATCH(ROWS($AB$5:$AB17),$Z$5:$Z$9097,0)-1,0)) -> 
A18: =IF(ISNA(INDEX([1]VTR!$A:$A,MATCH(D18,[1]VTR!$D:$D,0))),"",INDEX([1]VTR!$A:$A,MATCH(D18,[1]VTR!$D:$D,0))) -> 4 | B18: =IF(C18<>"","",IF(B17="",B17,B17)) -> 01 | D18: 17.01-04 | G18: =IF(ISNA(INDEX([1]ART!$Q:$Q,MATCH(I18,[1]ART!$B:$B,0))),"",INDEX([1]ART!$Q:$Q,MATCH(I18,[1]ART!$B:$B,0))) -> 1-PRS | H18: 1 | I18: PP1 | J18: =IF(ISNA(INDEX([1]ART!$C:$C,MATCH(I18,[1]ART!$B:$B,0))),"",INDEX([1]ART!$C:$C,MATCH(I18,[1]ART!$B:$B,0))) -> Traçage Couleur / Papier (avec aplats) | K18: =IF(ISNA(INDEX([1]ART!$D:$D,MATCH(I18,[1]ART!$B:$B,0))),"",INDEX([1]ART!$D:$D,MATCH(I18,[1]ART!$B:$B,0))) -> ML | L18: 10 | M18: 705.13 | N18: 7051.3 | O18: 0.04999078184 | P18: 352.5 | Q18: =N18-P18 -> 6698.8 | R18: =IF(ISNA(INDEX([1]ART!$H:$H,MATCH(I18,[1]ART!$B:$B,0))),"",INDEX([1]ART!$H:$H,MATCH(I18,[1]ART!$B:$B,0))) -> 0.19 | S18: =Q18*R18 -> 1272.772 | T18: =Q18+S18 -> 7971.572 | Z18: =A18 -> 4 | AB18: =IF(E18="","",IF(COUNTIF(E$5:E18,E18)>1,"",MAX($AB$4:$AB17)+1)) ->  | AC18: =IF(ROWS($AB$5:$AB18)>MAX($Z$5:$Z$9097),"",OFFSET($E$5,MATCH(ROWS($AB$5:$AB18),$Z$5:$Z$9097,0)-1,0)) -> 
A19: 0 | B19: 01 | C19: 2017-01-25 | D19: =IF(E19<>"","",IF(D18="",E18,D18)) ->  | E19: =IF(C19="","","17."&TEXT(B19,"00")&"-"&TEXT(SUMPRODUCT((LEFT(E$4:E18,5)="17."&TEXT($B19,"00"))*1)+1,"00")) -> 17.01-05 | G19: =IF(ISNA(INDEX([1]ART!$Q:$Q,MATCH(I19,[1]ART!$B:$B,0))),"",INDEX([1]ART!$Q:$Q,MATCH(I19,[1]ART!$B:$B,0))) ->  | I19: 2 | J19: =IF(ISNA(INDEX([1]ART!$C:$C,MATCH(I19,[1]ART!$B:$B,0))),"",INDEX([1]ART!$C:$C,MATCH(I19,[1]ART!$B:$B,0))) ->  | K19: =IF(ISNA(INDEX([1]ART!$D:$D,MATCH(I19,[1]ART!$B:$B,0))),"",INDEX([1]ART!$D:$D,MATCH(I19,[1]ART!$B:$B,0))) ->  | N19: =SUMIF($D20:$D$9423,$E19,N20:N$9423) -> 0 | O19: =P19/N19 ->  | Q19: =N19-P19 -> 0 | R19: =R20 ->  | S19: =Q19*R19 ->  | T19: =Q19+S19 ->  | V19: =T19+U19 ->  | W19: . | Z19: =A20 -> 5 | AB19: =IF(E19="","",IF(COUNTIF(E$5:E19,E19)>1,"",MAX($AB$4:$AB18)+1)) -> 5 | AC19: =IF(ROWS($AB$5:$AB19)>MAX($Z$5:$Z$9097),"",OFFSET($E$5,MATCH(ROWS($AB$5:$AB19),$Z$5:$Z$9097,0)-1,0)) -> 
A20: =IF(ISNA(INDEX([1]VTR!$A:$A,MATCH(D20,[1]VTR!$D:$D,0))),"",INDEX([1]VTR!$A:$A,MATCH(D20,[1]VTR!$D:$D,0))) -> 5 | B20: =IF(C20<>"","",IF(B19="",B19,B19)) -> 01 | D20: 17.01-05 | G20: =IF(ISNA(INDEX([1]ART!$Q:$Q,MATCH(I20,[1]ART!$B:$B,0))),"",INDEX([1]ART!$Q:$Q,MATCH(I20,[1]ART!$B:$B,0))) ->  | J20: =IF(ISNA(INDEX([1]ART!$C:$C,MATCH(I20,[1]ART!$B:$B,0))),"",INDEX([1]ART!$C:$C,MATCH(I20,[1]ART!$B:$B,0))) ->  | K20: =IF(ISNA(INDEX([1]ART!$D:$D,MATCH(I20,[1]ART!$B:$B,0))),"",INDEX([1]ART!$D:$D,MATCH(I20,[1]ART!$B:$B,0))) ->  | R20: =IF(ISNA(INDEX([1]ART!$H:$H,MATCH(I20,[1]ART!$B:$B,0))),"",INDEX([1]ART!$H:$H,MATCH(I20,[1]ART!$B:$B,0))) -> 
A21: =IF(ISNA(INDEX([1]VTR!$A:$A,MATCH(D21,[1]VTR!$D:$D,0))),"",INDEX([1]VTR!$A:$A,MATCH(D21,[1]VTR!$D:$D,0))) -> 5 | B21: =IF(C21<>"","",IF(B20="",B20,B20)) -> 01 | D21: 17.01-05 | G21: =IF(ISNA(INDEX([1]ART!$Q:$Q,MATCH(I21,[1]ART!$B:$B,0))),"",INDEX([1]ART!$Q:$Q,MATCH(I21,[1]ART!$B:$B,0))) ->  | J21: =IF(ISNA(INDEX([1]ART!$C:$C,MATCH(I21,[1]ART!$B:$B,0))),"",INDEX([1]ART!$C:$C,MATCH(I21,[1]ART!$B:$B,0))) ->  | K21: =IF(ISNA(INDEX([1]ART!$D:$D,MATCH(I21,[1]ART!$B:$B,0))),"",INDEX([1]ART!$D:$D,MATCH(I21,[1]ART!$B:$B,0))) ->  | R21: =IF(ISNA(INDEX([1]ART!$H:$H,MATCH(I21,[1]ART!$B:$B,0))),"",INDEX([1]ART!$H:$H,MATCH(I21,[1]ART!$B:$B,0))) -> 
A22: =IF(ISNA(INDEX([1]VTR!$A:$A,MATCH(D22,[1]VTR!$D:$D,0))),"",INDEX([1]VTR!$A:$A,MATCH(D22,[1]VTR!$D:$D,0))) -> 5 | B22: 01 | D22: 17.01-05 | G22: =IF(ISNA(INDEX([1]ART!$Q:$Q,MATCH(I22,[1]ART!$B:$B,0))),"",INDEX([1]ART!$Q:$Q,MATCH(I22,[1]ART!$B:$B,0))) ->  | J22: =IF(ISNA(INDEX([1]ART!$C:$C,MATCH(I22,[1]ART!$B:$B,0))),"",INDEX([1]ART!$C:$C,MATCH(I22,[1]ART!$B:$B,0))) ->  | K22: =IF(ISNA(INDEX([1]ART!$D:$D,MATCH(I22,[1]ART!$B:$B,0))),"",INDEX([1]ART!$D:$D,MATCH(I22,[1]ART!$B:$B,0))) ->  | R22: =IF(ISNA(INDEX([1]ART!$H:$H,MATCH(I22,[1]ART!$B:$B,0))),"",INDEX([1]ART!$H:$H,MATCH(I22,[1]ART!$B:$B,0))) -> 
A23: =IF(ISNA(INDEX([1]VTR!$A:$A,MATCH(D23,[1]VTR!$D:$D,0))),"",INDEX([1]VTR!$A:$A,MATCH(D23,[1]VTR!$D:$D,0))) -> 5 | B23: 01 | D23: 17.01-05 | G23: =IF(ISNA(INDEX([1]ART!$Q:$Q,MATCH(I23,[1]ART!$B:$B,0))),"",INDEX([1]ART!$Q:$Q,MATCH(I23,[1]ART!$B:$B,0))) ->  | J23: =IF(ISNA(INDEX([1]ART!$C:$C,MATCH(I23,[1]ART!$B:$B,0))),"",INDEX([1]ART!$C:$C,MATCH(I23,[1]ART!$B:$B,0))) ->  | K23: =IF(ISNA(INDEX([1]ART!$D:$D,MATCH(I23,[1]ART!$B:$B,0))),"",INDEX([1]ART!$D:$D,MATCH(I23,[1]ART!$B:$B,0))) ->  | R23: =IF(ISNA(INDEX([1]ART!$H:$H,MATCH(I23,[1]ART!$B:$B,0))),"",INDEX([1]ART!$H:$H,MATCH(I23,[1]ART!$B:$B,0))) -> 
A24: =IF(ISNA(INDEX([1]VTR!$A:$A,MATCH(D24,[1]VTR!$D:$D,0))),"",INDEX([1]VTR!$A:$A,MATCH(D24,[1]VTR!$D:$D,0))) -> 5 | B24: 01 | D24: 17.01-05 | G24: =IF(ISNA(INDEX([1]ART!$Q:$Q,MATCH(I24,[1]ART!$B:$B,0))),"",INDEX([1]ART!$Q:$Q,MATCH(I24,[1]ART!$B:$B,0))) ->  | J24: =IF(ISNA(INDEX([1]ART!$C:$C,MATCH(I24,[1]ART!$B:$B,0))),"",INDEX([1]ART!$C:$C,MATCH(I24,[1]ART!$B:$B,0))) ->  | K24: =IF(ISNA(INDEX([1]ART!$D:$D,MATCH(I24,[1]ART!$B:$B,0))),"",INDEX([1]ART!$D:$D,MATCH(I24,[1]ART!$B:$B,0))) ->  | R24: =IF(ISNA(INDEX([1]ART!$H:$H,MATCH(I24,[1]ART!$B:$B,0))),"",INDEX([1]ART!$H:$H,MATCH(I24,[1]ART!$B:$B,0))) -> 
A25: =IF(ISNA(INDEX([1]VTR!$A:$A,MATCH(D25,[1]VTR!$D:$D,0))),"",INDEX([1]VTR!$A:$A,MATCH(D25,[1]VTR!$D:$D,0))) -> 5 | B25: 01 | D25: 17.01-05 | G25: =IF(ISNA(INDEX([1]ART!$Q:$Q,MATCH(I25,[1]ART!$B:$B,0))),"",INDEX([1]ART!$Q:$Q,MATCH(I25,[1]ART!$B:$B,0))) ->  | J25: =IF(ISNA(INDEX([1]ART!$C:$C,MATCH(I25,[1]ART!$B:$B,0))),"",INDEX([1]ART!$C:$C,MATCH(I25,[1]ART!$B:$B,0))) ->  | K25: =IF(ISNA(INDEX([1]ART!$D:$D,MATCH(I25,[1]ART!$B:$B,0))),"",INDEX([1]ART!$D:$D,MATCH(I25,[1]ART!$B:$B,0))) ->  | R25: =IF(ISNA(INDEX([1]ART!$H:$H,MATCH(I25,[1]ART!$B:$B,0))),"",INDEX([1]ART!$H:$H,MATCH(I25,[1]ART!$B:$B,0))) -> 
A26: =IF(ISNA(INDEX([1]VTR!$A:$A,MATCH(D26,[1]VTR!$D:$D,0))),"",INDEX([1]VTR!$A:$A,MATCH(D26,[1]VTR!$D:$D,0))) -> 5 | B26: 01 | D26: 17.01-05 | G26: =IF(ISNA(INDEX([1]ART!$Q:$Q,MATCH(I26,[1]ART!$B:$B,0))),"",INDEX([1]ART!$Q:$Q,MATCH(I26,[1]ART!$B:$B,0))) ->  | J26: =IF(ISNA(INDEX([1]ART!$C:$C,MATCH(I26,[1]ART!$B:$B,0))),"",INDEX([1]ART!$C:$C,MATCH(I26,[1]ART!$B:$B,0))) ->  | K26: =IF(ISNA(INDEX([1]ART!$D:$D,MATCH(I26,[1]ART!$B:$B,0))),"",INDEX([1]ART!$D:$D,MATCH(I26,[1]ART!$B:$B,0))) ->  | R26: =IF(ISNA(INDEX([1]ART!$H:$H,MATCH(I26,[1]ART!$B:$B,0))),"",INDEX([1]ART!$H:$H,MATCH(I26,[1]ART!$B:$B,0))) -> 
A27: =IF(ISNA(INDEX([1]VTR!$A:$A,MATCH(D27,[1]VTR!$D:$D,0))),"",INDEX([1]VTR!$A:$A,MATCH(D27,[1]VTR!$D:$D,0))) -> 5 | B27: 01 | D27: 17.01-05 | G27: =IF(ISNA(INDEX([1]ART!$Q:$Q,MATCH(I27,[1]ART!$B:$B,0))),"",INDEX([1]ART!$Q:$Q,MATCH(I27,[1]ART!$B:$B,0))) ->  | J27: =IF(ISNA(INDEX([1]ART!$C:$C,MATCH(I27,[1]ART!$B:$B,0))),"",INDEX([1]ART!$C:$C,MATCH(I27,[1]ART!$B:$B,0))) ->  | K27: =IF(ISNA(INDEX([1]ART!$D:$D,MATCH(I27,[1]ART!$B:$B,0))),"",INDEX([1]ART!$D:$D,MATCH(I27,[1]ART!$B:$B,0))) ->  | R27: =IF(ISNA(INDEX([1]ART!$H:$H,MATCH(I27,[1]ART!$B:$B,0))),"",INDEX([1]ART!$H:$H,MATCH(I27,[1]ART!$B:$B,0))) -> 
A28: =IF(ISNA(INDEX([1]VTR!$A:$A,MATCH(D28,[1]VTR!$D:$D,0))),"",INDEX([1]VTR!$A:$A,MATCH(D28,[1]VTR!$D:$D,0))) -> 5 | B28: 01 | D28: 17.01-05 | G28: =IF(ISNA(INDEX([1]ART!$Q:$Q,MATCH(I28,[1]ART!$B:$B,0))),"",INDEX([1]ART!$Q:$Q,MATCH(I28,[1]ART!$B:$B,0))) ->  | J28: =IF(ISNA(INDEX([1]ART!$C:$C,MATCH(I28,[1]ART!$B:$B,0))),"",INDEX([1]ART!$C:$C,MATCH(I28,[1]ART!$B:$B,0))) ->  | K28: =IF(ISNA(INDEX([1]ART!$D:$D,MATCH(I28,[1]ART!$B:$B,0))),"",INDEX([1]ART!$D:$D,MATCH(I28,[1]ART!$B:$B,0))) ->  | R28: =IF(ISNA(INDEX([1]ART!$H:$H,MATCH(I28,[1]ART!$B:$B,0))),"",INDEX([1]ART!$H:$H,MATCH(I28,[1]ART!$B:$B,0))) -> 
A29: =IF(ISNA(INDEX([1]VTR!$A:$A,MATCH(D29,[1]VTR!$D:$D,0))),"",INDEX([1]VTR!$A:$A,MATCH(D29,[1]VTR!$D:$D,0))) -> 5 | B29: 01 | D29: 17.01-05 | G29: =IF(ISNA(INDEX([1]ART!$Q:$Q,MATCH(I29,[1]ART!$B:$B,0))),"",INDEX([1]ART!$Q:$Q,MATCH(I29,[1]ART!$B:$B,0))) ->  | J29: =IF(ISNA(INDEX([1]ART!$C:$C,MATCH(I29,[1]ART!$B:$B,0))),"",INDEX([1]ART!$C:$C,MATCH(I29,[1]ART!$B:$B,0))) ->  | K29: =IF(ISNA(INDEX([1]ART!$D:$D,MATCH(I29,[1]ART!$B:$B,0))),"",INDEX([1]ART!$D:$D,MATCH(I29,[1]ART!$B:$B,0))) ->  | R29: =IF(ISNA(INDEX([1]ART!$H:$H,MATCH(I29,[1]ART!$B:$B,0))),"",INDEX([1]ART!$H:$H,MATCH(I29,[1]ART!$B:$B,0))) -> 
A30: =IF(ISNA(INDEX([1]VTR!$A:$A,MATCH(D30,[1]VTR!$D:$D,0))),"",INDEX([1]VTR!$A:$A,MATCH(D30,[1]VTR!$D:$D,0))) -> 5 | B30: 01 | D30: 17.01-05 | G30: =IF(ISNA(INDEX([1]ART!$Q:$Q,MATCH(I30,[1]ART!$B:$B,0))),"",INDEX([1]ART!$Q:$Q,MATCH(I30,[1]ART!$B:$B,0))) ->  | J30: =IF(ISNA(INDEX([1]ART!$C:$C,MATCH(I30,[1]ART!$B:$B,0))),"",INDEX([1]ART!$C:$C,MATCH(I30,[1]ART!$B:$B,0))) ->  | K30: =IF(ISNA(INDEX([1]ART!$D:$D,MATCH(I30,[1]ART!$B:$B,0))),"",INDEX([1]ART!$D:$D,MATCH(I30,[1]ART!$B:$B,0))) ->  | R30: =IF(ISNA(INDEX([1]ART!$H:$H,MATCH(I30,[1]ART!$B:$B,0))),"",INDEX([1]ART!$H:$H,MATCH(I30,[1]ART!$B:$B,0))) -> 
A31: =IF(ISNA(INDEX([1]VTR!$A:$A,MATCH(D31,[1]VTR!$D:$D,0))),"",INDEX([1]VTR!$A:$A,MATCH(D31,[1]VTR!$D:$D,0))) -> 5 | B31: 01 | D31: 17.01-05 | G31: =IF(ISNA(INDEX([1]ART!$Q:$Q,MATCH(I31,[1]ART!$B:$B,0))),"",INDEX([1]ART!$Q:$Q,MATCH(I31,[1]ART!$B:$B,0))) ->  | J31: =IF(ISNA(INDEX([1]ART!$C:$C,MATCH(I31,[1]ART!$B:$B,0))),"",INDEX([1]ART!$C:$C,MATCH(I31,[1]ART!$B:$B,0))) ->  | K31: =IF(ISNA(INDEX([1]ART!$D:$D,MATCH(I31,[1]ART!$B:$B,0))),"",INDEX([1]ART!$D:$D,MATCH(I31,[1]ART!$B:$B,0))) ->  | R31: =IF(ISNA(INDEX([1]ART!$H:$H,MATCH(I31,[1]ART!$B:$B,0))),"",INDEX([1]ART!$H:$H,MATCH(I31,[1]ART!$B:$B,0))) -> 
A32: =IF(ISNA(INDEX([1]VTR!$A:$A,MATCH(D32,[1]VTR!$D:$D,0))),"",INDEX([1]VTR!$A:$A,MATCH(D32,[1]VTR!$D:$D,0))) -> 5 | B32: 01 | D32: 17.01-05 | G32: =IF(ISNA(INDEX([1]ART!$Q:$Q,MATCH(I32,[1]ART!$B:$B,0))),"",INDEX([1]ART!$Q:$Q,MATCH(I32,[1]ART!$B:$B,0))) ->  | J32: =IF(ISNA(INDEX([1]ART!$C:$C,MATCH(I32,[1]ART!$B:$B,0))),"",INDEX([1]ART!$C:$C,MATCH(I32,[1]ART!$B:$B,0))) ->  | K32: =IF(ISNA(INDEX([1]ART!$D:$D,MATCH(I32,[1]ART!$B:$B,0))),"",INDEX([1]ART!$D:$D,MATCH(I32,[1]ART!$B:$B,0))) ->  | R32: =IF(ISNA(INDEX([1]ART!$H:$H,MATCH(I32,[1]ART!$B:$B,0))),"",INDEX([1]ART!$H:$H,MATCH(I32,[1]ART!$B:$B,0))) -> 
A33: =IF(ISNA(INDEX([1]VTR!$A:$A,MATCH(D33,[1]VTR!$D:$D,0))),"",INDEX([1]VTR!$A:$A,MATCH(D33,[1]VTR!$D:$D,0))) -> 5 | B33: 01 | D33: 17.01-05 | G33: =IF(ISNA(INDEX([1]ART!$Q:$Q,MATCH(I33,[1]ART!$B:$B,0))),"",INDEX([1]ART!$Q:$Q,MATCH(I33,[1]ART!$B:$B,0))) ->  | J33: =IF(ISNA(INDEX([1]ART!$C:$C,MATCH(I33,[1]ART!$B:$B,0))),"",INDEX([1]ART!$C:$C,MATCH(I33,[1]ART!$B:$B,0))) ->  | K33: =IF(ISNA(INDEX([1]ART!$D:$D,MATCH(I33,[1]ART!$B:$B,0))),"",INDEX([1]ART!$D:$D,MATCH(I33,[1]ART!$B:$B,0))) ->  | R33: =IF(ISNA(INDEX([1]ART!$H:$H,MATCH(I33,[1]ART!$B:$B,0))),"",INDEX([1]ART!$H:$H,MATCH(I33,[1]ART!$B:$B,0))) -> 
A34: =IF(ISNA(INDEX([1]VTR!$A:$A,MATCH(D34,[1]VTR!$D:$D,0))),"",INDEX([1]VTR!$A:$A,MATCH(D34,[1]VTR!$D:$D,0))) -> 5 | B34: 01 | D34: 17.01-05 | G34: =IF(ISNA(INDEX([1]ART!$Q:$Q,MATCH(I34,[1]ART!$B:$B,0))),"",INDEX([1]ART!$Q:$Q,MATCH(I34,[1]ART!$B:$B,0))) ->  | J34: =IF(ISNA(INDEX([1]ART!$C:$C,MATCH(I34,[1]ART!$B:$B,0))),"",INDEX([1]ART!$C:$C,MATCH(I34,[1]ART!$B:$B,0))) ->  | K34: =IF(ISNA(INDEX([1]ART!$D:$D,MATCH(I34,[1]ART!$B:$B,0))),"",INDEX([1]ART!$D:$D,MATCH(I34,[1]ART!$B:$B,0))) ->  | R34: =IF(ISNA(INDEX([1]ART!$H:$H,MATCH(I34,[1]ART!$B:$B,0))),"",INDEX([1]ART!$H:$H,MATCH(I34,[1]ART!$B:$B,0))) -> 
A35: =IF(ISNA(INDEX([1]VTR!$A:$A,MATCH(D35,[1]VTR!$D:$D,0))),"",INDEX([1]VTR!$A:$A,MATCH(D35,[1]VTR!$D:$D,0))) -> 5 | B35: 01 | D35: 17.01-05 | G35: =IF(ISNA(INDEX([1]ART!$Q:$Q,MATCH(I35,[1]ART!$B:$B,0))),"",INDEX([1]ART!$Q:$Q,MATCH(I35,[1]ART!$B:$B,0))) ->  | J35: =IF(ISNA(INDEX([1]ART!$C:$C,MATCH(I35,[1]ART!$B:$B,0))),"",INDEX([1]ART!$C:$C,MATCH(I35,[1]ART!$B:$B,0))) ->  | K35: =IF(ISNA(INDEX([1]ART!$D:$D,MATCH(I35,[1]ART!$B:$B,0))),"",INDEX([1]ART!$D:$D,MATCH(I35,[1]ART!$B:$B,0))) ->  | R35: =IF(ISNA(INDEX([1]ART!$H:$H,MATCH(I35,[1]ART!$B:$B,0))),"",INDEX([1]ART!$H:$H,MATCH(I35,[1]ART!$B:$B,0))) -> 
A36: =IF(ISNA(INDEX([1]VTR!$A:$A,MATCH(D36,[1]VTR!$D:$D,0))),"",INDEX([1]VTR!$A:$A,MATCH(D36,[1]VTR!$D:$D,0))) -> 5 | B36: 01 | D36: 17.01-05 | G36: =IF(ISNA(INDEX([1]ART!$Q:$Q,MATCH(I36,[1]ART!$B:$B,0))),"",INDEX([1]ART!$Q:$Q,MATCH(I36,[1]ART!$B:$B,0))) ->  | J36: =IF(ISNA(INDEX([1]ART!$C:$C,MATCH(I36,[1]ART!$B:$B,0))),"",INDEX([1]ART!$C:$C,MATCH(I36,[1]ART!$B:$B,0))) ->  | K36: =IF(ISNA(INDEX([1]ART!$D:$D,MATCH(I36,[1]ART!$B:$B,0))),"",INDEX([1]ART!$D:$D,MATCH(I36,[1]ART!$B:$B,0))) ->  | R36: =IF(ISNA(INDEX([1]ART!$H:$H,MATCH(I36,[1]ART!$B:$B,0))),"",INDEX([1]ART!$H:$H,MATCH(I36,[1]ART!$B:$B,0))) -> 
A37: =IF(ISNA(INDEX([1]VTR!$A:$A,MATCH(D37,[1]VTR!$D:$D,0))),"",INDEX([1]VTR!$A:$A,MATCH(D37,[1]VTR!$D:$D,0))) -> 5 | B37: 01 | D37: 17.01-05 | G37: =IF(ISNA(INDEX([1]ART!$Q:$Q,MATCH(I37,[1]ART!$B:$B,0))),"",INDEX([1]ART!$Q:$Q,MATCH(I37,[1]ART!$B:$B,0))) ->  | J37: =IF(ISNA(INDEX([1]ART!$C:$C,MATCH(I37,[1]ART!$B:$B,0))),"",INDEX([1]ART!$C:$C,MATCH(I37,[1]ART!$B:$B,0))) ->  | K37: =IF(ISNA(INDEX([1]ART!$D:$D,MATCH(I37,[1]ART!$B:$B,0))),"",INDEX([1]ART!$D:$D,MATCH(I37,[1]ART!$B:$B,0))) ->  | R37: =IF(ISNA(INDEX([1]ART!$H:$H,MATCH(I37,[1]ART!$B:$B,0))),"",INDEX([1]ART!$H:$H,MATCH(I37,[1]ART!$B:$B,0))) -> 

Sheet Feuil2

Sheet Feuil3
